bitfinex/quotes_SOLUSD_20251128
["timestamp","ask_amount","ask_price","bid_price","bid_amount"]
[1764342931464,10.01971141,142.42,142.41,0.1]
[1764342932253,7.72148574,142.42,142.41,0.1]
[1764342936656,7.72148574,142.42,142.4,8.80994492]
[1764342936840,2.99822567,142.41,142.39,0.1]
[1764342937046,2.99822567,142.4,142.39,0.1]
[1764342937242,2.99822567,142.4,142.37,3.12]
[1764342937449,2.29822567,142.39,142.37,3.78]
[1764342937845,2.29822567,142.38,142.37,3.78]
[1764342938249,2.29822567,142.38,142.37,4.06432314]
[1764342938555,47.43720144,142.38,142.32,0.1]
[1764342938754,47.43720144,142.38,142.32,1e-08]
[1764342938755,2.29822567,142.33,142.32,1e-08]
[1764342939135,2.99822567,142.33,142.32,1e-08]
[1764342939431,25.67645134,142.33,142.29,1e-08]
[1764342939630,2.29822567,142.3,142.28,1e-08]
[1764342939858,2.29822567,142.31,142.28,1e-08]
[1764342939859,2.29822567,142.29,142.28,1e-08]
[1764342940246,6.81822567,142.29,142.28,1e-08]
[1764342940452,16.96612643,142.29,142.28,1e-08]
[1764342940662,10.84790076,142.29,142.28,9.46994493]
[1764342940932,7.02790076,142.29,142.28,9.46994493]
[1764342941151,7.02790076,142.29,142.28,9.75426807]
[1764342941842,7.02740688,142.3,142.29,8.80994492]
[1764342942661,9.32563255,142.3,142.28,0.94432315]
[1764342943262,9.32563255,142.3,142.28,0.28432315]
[1764342944953,2.29822567,142.29,142.28,0.28432315]
[1764342945674,7.02740688,142.3,142.29,0.28432314]
[1764342946045,7.02740688,142.3,142.29,0.94432314]
[1764342946245,24.59528659,142.31,142.29,0.94432314]
[1764342946650,24.59528659,142.31,142.3,26.06313206]
[1764342947945,7.02691307,142.31,142.3,26.06313206]
[1764342948140,7.02641933,142.32,142.31,0.28432314]
[1764342948340,7.02641933,142.32,142.31,0.94432314]
[1764342948840,2.29822567,142.34,142.33,0.14216157]
[1764342948841,7.02543206,142.34,142.33,0.14216157]
[1764342949066,7.02543206,142.34,142.33,9.09426806]
[1764342950172,7.02507611,142.35,142.33,0.28432314]
[1764342950371,7.02507611,142.35,142.33,0.94432314]
[1764342950710,2.29822567,142.34,142.31,0.66]
[1764342950976,2.29822567,142.34,142.3,8.80994492]
[1764342950977,2.29822567,142.33,142.3,8.80994492]
[1764342951192,2.95822567,142.33,142.31,0.14216157]
[1764342951356,24.58742243,142.35,142.33,0.14216157]
[1764342951873,2.29822567,142.37,142.33,0.66]
[1764342952060,2.95822567,142.37,142.33,0.66]
[1764342952261,7.02444506,142.36,142.33,0.66]
[1764342952479,24.58555773,142.36,142.33,0.66]
[1764342954154,7.02444506,142.36,142.34,9.09426806]
[1764342954651,7.02444506,142.36,142.35,0.66]
[1764342956288,24.58248114,142.38,142.36,8.80994492]
[1764342956595,24.58248114,142.38,142.37,0.28432314]
[1764342956761,7.02345835,142.38,142.37,0.94432314]
[1764342957787,7.02345835,142.38,142.37,0.28432314]
[1764342958289,7.02345835,142.38,142.35,0.28432314]
[1764342958290,27.54032989,142.38,142.35,0.28432314]
[1764342958473,0.66,142.37,142.34,8.80994492]
[1764342959787,7.02444506,142.36,142.34,8.80994492]
[1764342960891,7.02444506,142.36,142.35,0.14216157]
[1764342961183,7.02444506,142.36,142.35,0.80216157]
[1764342961386,7.02444506,142.36,142.35,0.66]
[1764342962197,17.56101403,142.37,142.36,8.80994492]
[1764342963005,7.02345835,142.38,142.37,8.80994492]
[1764342963290,17.55728564,142.4,142.37,9.61210649]
[1764342963291,7.02311528,142.39,142.37,9.61210649]
[1764342963485,7.02311528,142.39,142.38,9.46994492]
[1764342964278,17.55728564,142.4,142.39,0.28432314]
[1764342964491,17.55728564,142.4,142.39,4.06432314]
[1764342965793,17.55728564,142.4,142.39,12.87426806]
[1764342966994,24.5752001,142.42,142.39,12.87426806]
[1764342967378,27.53342577,142.42,142.39,12.87426806]
[1764342967787,26.87342577,142.42,142.39,12.87426806]
[1764342969965,24.5752001,142.42,142.39,12.21426806]
[1764342970172,24.5752001,142.42,142.39,12.88426806]
[1764342970679,7.02148574,142.42,142.41,8.80994492]
[1764342971072,24.5752001,142.42,142.39,4.06432314]
[1764342971396,24.5752001,142.42,142.41,8.80994492]
[1764342971629,7.02113275,142.43,142.41,9.09426806]
[1764342971768,7.02113275,142.43,142.41,0.94432314]
[1764342972172,28.16578006,142.44,142.41,0.94432314]
[1764342972373,3.59371393,142.43,142.41,0.28432314]
[1764342973208,3.59371393,142.43,142.4,8.80994492]
[1764342973209,3.59371393,142.42,142.4,8.80994492]
[1764342974097,4.30371393,142.42,142.4,8.80994492]
[1764342974283,7.02197879,142.41,142.4,9.09426806]
[1764342974703,11.32569272,142.41,142.4,8.80994492]
[1764342975423,10.61569272,142.41,142.4,8.80994492]
[1764342975711,7.02197879,142.41,142.4,8.80994492]
[1764342976609,10.61569272,142.41,142.4,8.80994492]
[1764342976814,11.32569272,142.41,142.4,8.80994492]
[1764342977988,10.61569272,142.41,142.4,8.80994492]
[1764342978207,7.02197879,142.41,142.4,8.80994492]
[1764342980927,10.61569272,142.41,142.4,8.80994492]
[1764342981225,11.27569272,142.41,142.39,3.12]
[1764342983715,21.14855464,142.42,142.4,8.80994492]
[1764342984246,17.55484071,142.42,142.4,9.47994492]
[1764342984532,17.55484071,142.42,142.41,9.47994492]
[1764342985036,17.55484071,142.42,142.41,8.80994492]
[1764342986635,3.12,142.46,142.42,8.80994492]
[1764342986636,24.57002457,142.45,142.42,8.80994492]
[1764342986945,25.23002457,142.45,142.42,9.47994492]
[1764342987232,28.8237385,142.45,142.42,0.28432314]
[1764342987935,28.1637385,142.45,142.42,0.28432314]
[1764342988140,28.1637385,142.45,142.44,8.80994492]
[1764342988141,17.55001755,142.45,142.44,8.80994492]
[1764342989354,17.55001755,142.45,142.44,0.95432314]
[1764342990452,7.01951424,142.46,142.44,0.95432314]
[1764342990754,7.01951424,142.46,142.45,9.47994492]
[1764342991335,24.56716643,142.47,142.45,8.80994492]
[1764342991836,28.82088036,142.47,142.45,8.80994492]
[1764342992042,4.25371393,142.46,142.45,8.80994492]
[1764342992430,3.59371393,142.46,142.45,8.80994492]
[1764342992835,25.22716643,142.47,142.45,9.47994492]
[1764342992836,7.01902154,142.47,142.45,9.47994492]
[1764342993041,4.25371393,142.49,142.46,9.09426806]
[1764342993258,63.43021281,142.5,142.44,9.09426806]
[1764342993443,3.59371393,142.47,142.44,9.09426806]
[1764342993753,3.59371393,142.46,142.44,9.09426806]
[1764342993956,0.66,142.48,142.44,9.09426806]
[1764342994135,3.59371393,142.47,142.44,9.09426806]
[1764342994337,3.59371393,142.47,142.44,9.76426806]
[1764342994653,3.59371393,142.49,142.45,0.67]
[1764342995031,4.25371393,142.49,142.45,0.67]
[1764342995259,17.54494967,142.5,142.45,4.26371393]
[1764342995566,17.54494967,142.5,142.45,0.67]
[1764342995729,7.01705143,142.51,142.48,9.09426806]
[1764342995930,7.01705143,142.51,142.48,12.21426806]
[1764342996153,24.55968001,142.51,142.5,8.80994492]
[1764342996531,24.55968001,142.51,142.48,29.19313206]
[1764342996935,7.01705143,142.51,142.5,9.09426806]
[1764342997239,7.0167356,142.52,142.51,0.28432314]
[1764342997536,7.21608808,142.53,142.52,8.80994492]
[1764342998547,0.2,142.56,142.52,32.78684599]
[1764342998747,0.2,142.56,142.55,25.40313206]
[1764342999053,0.86,142.64,142.56,0.28432314]
[1764342999349,4.45371393,142.64,142.58,9.09426806]
[1764342999553,10.80519531,142.63,142.6,0.28432314]
[1764342999854,11.46519531,142.63,142.6,0.28432314]
[1764343000154,17.72744732,142.64,142.6,0.28432314]
[1764343000155,0.2,142.64,142.62,28.99684599]
[1764343000345,0.2,142.65,142.63,12.21426806]
[1764343000749,0.2,142.65,142.63,12.91426806]
[1764343000951,7.21063712,142.65,142.64,9.50994492]
[1764343001155,7.21063712,142.65,142.64,8.80994492]
[1764343001544,7.87063712,142.65,142.64,9.09426806]
[1764343001960,7.21063712,142.65,142.64,9.09426806]
[1764343005240,7.21063712,142.65,142.64,9.79426806]
[1764343005446,7.21063712,142.65,142.64,9.09426806]
[1764343008649,0.2,142.65,142.64,19.29525705]
[1764343010061,0.2,142.65,142.64,9.79426806]
[1764343011250,0.2,142.65,142.64,26.10313206]
[1764343011566,7.21016473,142.65,142.64,25.11880892]
[1764343011780,0.2,142.65,142.64,19.01093391]
[1764343011946,0.2,142.65,142.64,19.29525705]
[1764343012142,7.87016473,142.65,142.63,3.12]
[1764343012348,10.16098899,142.64,142.6,3.1]
[1764343012688,10.16098899,142.64,142.61,8.80994492]
[1764343012689,9.50098899,142.63,142.61,8.80994492]
[1764343012846,10.16098899,142.63,142.61,8.80994492]
[1764343013042,10.16098899,142.62,142.61,8.80994492]
[1764343013273,10.16098899,142.62,142.6,3.1]
[1764343013446,10.16098899,142.61,142.6,11.90994492]
[1764343013644,10.16098899,142.61,142.48,1.99999999]
[1764343013645,10.16098899,142.61,142.56,3.1]
[1764343013954,59.78640026,142.65,142.57,8.80994492]
[1764343013955,7.01360639,142.58,142.57,8.80994492]
[1764343014157,7.01360639,142.58,142.57,9.09426806]
[1764343014344,7.01360639,142.58,142.57,8.80994492]
[1764343014761,7.01360639,142.58,142.57,9.09426806]
[1764343014962,7.01360639,142.58,142.57,8.80994492]
[1764343015168,7.01313564,142.59,142.58,0.28432314]
[1764343015369,7.01254946,142.61,142.58,0.28432314]
[1764343015571,18.1894799,142.62,142.58,0.98432314]
[1764343015572,17.17264586,142.62,142.58,0.98432314]
[1764343016071,7.01165687,142.62,142.58,0.98432314]
[1764343016273,7.67165687,142.62,142.58,0.98432314]
[1764343016457,7.67165687,142.62,142.58,0.28432314]
[1764343016658,0.66,142.61,142.58,0.28432314]
[1764343016855,0.66,142.61,142.59,3.1]
[1764343017675,24.54075517,142.62,142.59,3.1]
[1764343017878,0.66,142.61,142.59,3.1]
[1764343018180,7.01262272,142.6,142.59,19.69318714]
[1764343018875,34.70516851,142.6,142.57,8.80994492]
[1764343019085,0.66,142.59,142.57,8.80994492]
[1764343020162,7.01360639,142.58,142.57,9.09426806]
[1764343020688,25.1999415,142.63,142.6,25.11880892]
[1764343020893,9.50098899,142.62,142.6,25.11880892]
[1764343021052,10.16098899,142.62,142.6,25.11880892]
[1764343021256,0.66,142.62,142.6,25.11880892]
[1764343021457,10.16098899,142.61,142.6,8.80994492]
[1764343021894,10.16098899,142.61,142.59,3.1]
[1764343022176,7.67262272,142.6,142.59,11.90994492]
[1764343022386,7.67262272,142.6,142.59,12.19426806]
[1764343022557,7.01262272,142.6,142.59,12.19426806]
[1764343023159,7.01065619,142.64,142.62,8.80994492]
[1764343023461,7.01065619,142.64,142.63,12.19426806]
[1764343025786,7.01065619,142.64,142.56,2.70145902]
[1764343025787,25.19729668,142.64,142.62,3.1]
[1764343026171,25.19729668,142.64,142.63,0.28432314]
[1764343026172,24.53729668,142.64,142.63,0.28432314]
[1764343029415,9.50098899,142.61,142.59,3.1]
[1764343029688,10.17098899,142.6,142.52,9.50098899]
[1764343029997,9.50098899,142.56,142.53,3.1]
[1764343030204,9.50098899,142.57,142.53,3.1]
[1764343030572,0.67,142.56,142.54,8.80994492]
[1764343031100,10.17098899,142.56,142.54,8.80994492]
[1764343031602,0.67,142.56,142.54,8.80994492]
[1764343031789,0.7,142.55,142.54,8.80994492]
[1764343032401,7.71508242,142.55,142.54,8.80994492]
[1764343034584,7.71508242,142.55,142.53,3.1]
[1764343034897,0.7,142.54,142.53,11.90994492]
[1764343035889,7.01508242,142.55,142.53,8.80994492]
[1764343036076,7.71508242,142.55,142.54,8.80994492]
[1764343036400,7.71508242,142.55,142.53,3.1]
[1764343036577,6.84922116,142.54,142.45,0.7]
[1764343036777,6.14922116,142.51,142.46,9.24922116]
[1764343036980,24.55278848,142.55,142.47,6.14922116]
[1764343037181,0.7,142.54,142.5,6.4335443]
[1764343037398,0.7,142.54,142.5,3.38432314]
[1764343037399,6.14922116,142.53,142.5,3.38432314]
[1764343037585,0.7,142.54,142.5,3.38432314]
[1764343037785,0.7,142.53,142.5,3.38432314]
[1764343038292,25.25278848,142.55,142.51,6.84922116]
[1764343038703,25.25278848,142.55,142.53,0.28432314]
[1764343039690,24.55278848,142.55,142.53,0.28432314]
[1764343040000,0.7,142.55,142.52,6.29138273]
[1764343040302,18.23574665,142.57,142.55,0.28432314]
[1764343040500,24.54984498,142.57,142.55,0.28432314]
[1764343040881,24.54984498,142.57,142.55,6.4335443]
[1764343041081,24.54984498,142.57,142.55,0.28432314]
[1764343041287,25.23984498,142.57,142.55,0.28432314]
[1764343042912,17.53574665,142.57,142.55,0.28432314]
[1764343043099,0.69,142.56,142.55,0.28432314]
[1764343043820,7.01360639,142.58,142.55,7.1435443]
[1764343043997,7.01114772,142.63,142.58,8.80994492]
[1764343044200,7.01114772,142.63,142.62,0.28432314]
[1764343044908,0.69,142.63,142.59,3.12]
[1764343045102,0.69,142.62,142.6,9.09426806]
[1764343045917,0.69,142.62,142.59,3.12]
[1764343045918,6.14922116,142.61,142.59,3.12]
[1764343046119,0.69,142.62,142.59,3.12]
[1764343046120,6.83922116,142.62,142.59,3.12]
[1764343046419,0.69,142.61,142.59,3.12]
[1764343047007,7.01262272,142.6,142.59,11.92994492]
[1764343047217,7.01262272,142.6,142.57,6.4335443]
[1764343047218,13.16184388,142.6,142.57,8.80994492]
[1764343047527,0.69,142.59,142.57,8.80994492]
[1764343048192,24.54417952,142.6,142.58,0.28432314]
[1764343048399,24.54417952,142.6,142.59,9.09426806]
[1764343049405,7.01213098,142.61,142.59,15.24348922]
[1764343049599,7.01213098,142.61,142.6,14.95916608]
[1764343049803,0.2,142.65,142.61,8.80994492]
[1764343050139,7.21016473,142.65,142.64,9.09426806]
[1764343050297,7.21016473,142.65,142.64,0.28432314]
[1764343051227,0.69,142.64,142.6,16.308864]
[1764343051532,24.53901703,142.63,142.61,0.14216157]
[1764343052078,24.53901703,142.63,142.62,0.14216157]
[1764343053310,7.01114772,142.63,142.62,9.09426806]
[1764343053492,7.01065619,142.64,142.62,9.09426806]
[1764343053694,7.01065619,142.64,142.63,0.14216157]
[1764343053997,7.21016473,142.65,142.64,9.09426806]
[1764343054397,7.21016473,142.65,142.64,15.95348922]
[1764343054823,7.21016473,142.65,142.64,15.24348922]
[1764343055022,7.21016473,142.65,142.64,31.55235322]
[1764343055023,0.2,142.65,142.64,31.55235322]
[1764343055210,0.2,142.65,142.64,32.26235322]
[1764343057924,0.2,142.66,142.65,0.14216157]
[1764343058114,0.2,142.66,142.65,21.97271038]
[1764343058543,0.2,142.66,142.65,15.82348922]
[1764343058915,0.2,142.71,142.7,0.14216157]
[1764343059121,0.2,142.71,142.7,18.36348922]
[1764343059321,7.20721743,142.71,142.7,12.21426806]
[1764343059835,7.20721743,142.71,142.7,18.36348922]
[1764343060328,7.20721743,142.71,142.7,12.21426806]
[1764343061042,7.20721743,142.71,142.7,18.36348922]
[1764343062537,25.43526101,142.71,142.63,0.38]
[1764343062737,25.43526101,142.71,142.69,8.80994492]
[1764343062738,0.71,142.7,142.69,8.80994492]
[1764343062938,0.71,142.7,142.69,9.09426806]
[1764343063239,0.71,142.7,142.69,8.95210649]
[1764343063438,0.71,142.7,142.69,9.09426806]
[1764343063637,7.71770847,142.7,142.69,9.09426806]
[1764343064040,31.38620082,142.7,142.58,18.30886399]
[1764343064258,0.71,142.69,142.64,6.14922116]
[1764343064435,0.71,142.69,142.66,8.80994492]
[1764343065148,7.00869077,142.68,142.66,8.80994492]
[1764343065341,0.71,142.67,142.66,9.09426806]
[1764343065540,7.71869077,142.68,142.66,9.09426806]
[1764343066734,17.52160999,142.69,142.66,9.09426806]
[1764343067077,0.71,142.68,142.66,9.09426806]
[1764343067846,17.52160999,142.69,142.68,9.09426806]
[1764343068158,17.52160999,142.69,142.68,18.36348922]
[1764343068334,17.52160999,142.69,142.68,12.21426806]
[1764343068731,24.52980958,142.69,142.68,12.21426806]
[1764343069155,7.00819959,142.69,142.68,18.74348922]
[1764343070256,7.00770847,142.7,142.69,0.28432314]
[1764343070460,7.00770847,142.7,142.69,15.24348922]
[1764343071057,7.20736247,142.71,142.69,15.24348922]
[1764343071256,7.20736247,142.71,142.7,6.14922116]
[1764343071459,7.20736247,142.71,142.7,15.24348922]
[1764343073059,7.20721743,142.71,142.7,15.24348922]
[1764343077243,7.20721743,142.71,142.7,9.09426806]
[1764343077454,7.20721743,142.71,142.7,15.24348922]
[1764343077653,7.91721743,142.71,142.7,9.09426806]
[1764343077857,0.2,142.71,142.7,15.24348922]
[1764343078061,7.20721743,142.71,142.7,15.24348922]
[1764343078739,7.20721743,142.71,142.7,15.62348922]
[1764343078941,0.2,142.71,142.7,15.62348922]
[1764343079247,0.2,142.72,142.71,9.09426806]
[1764343079450,0.2,142.72,142.71,18.52348922]
[1764343080646,0.2,142.72,142.71,15.24348922]
[1764343080869,0.2,142.72,142.71,18.34348922]
[1764343081047,7.91672645,142.72,142.71,0.28432314]
[1764343081247,7.91672645,142.72,142.71,12.19426806]
[1764343081478,7.91672645,142.72,142.71,8.80994492]
[1764343081768,14.06594761,142.72,142.71,11.90994492]
[1764343082143,14.06594761,142.72,142.59,0.18]
[1764343082144,31.58276375,142.72,142.59,0.18]
[1764343082271,31.58276375,142.72,142.56,35.55992913]
[1764343082272,0.71,142.71,142.64,6.14922116]
[1764343082472,6.85922116,142.71,142.68,16.308864]
[1764343082672,0.71,142.71,142.68,16.308864]
[1764343082877,0.71,142.7,142.68,16.308864]
[1764343083076,0.71,142.7,142.69,8.80994492]
[1764343083281,7.71770847,142.7,142.69,9.09426806]
[1764343083463,13.86692963,142.7,142.68,3.1]
[1764343083662,13.86692963,142.7,142.58,0.71]
[1764343083663,9.95922116,142.69,142.58,0.71]
[1764343083864,6.14922116,142.66,142.6,14.95916608]
[1764343084087,0.71,142.69,142.65,0.28432314]
[1764343084257,0.71,142.69,142.65,9.5535443]
[1764343084456,0.71,142.69,142.66,8.80994492]
[1764343085097,6.14922116,142.67,142.61,6.14922116]
[1764343085384,6.14922116,142.67,142.64,8.80994492]
[1764343085385,7.00967334,142.66,142.64,8.80994492]
[1764343085593,13.8688945,142.66,142.64,8.80994492]
[1764343085796,0.71,142.65,142.64,8.80994492]
[1764343086159,6.85922116,142.65,142.63,3.12]
[1764343086380,6.85922116,142.65,142.56,6.14922116]
[1764343086381,6.14922116,142.64,142.56,6.14922116]
[1764343086567,6.14922116,142.62,142.57,3.12]
[1764343086875,6.85922116,142.63,142.6,9.09426806]
[1764343087089,6.14922116,142.62,142.6,8.80994492]
[1764343087392,24.53729668,142.64,142.61,0.28432314]
[1764343087988,25.24729668,142.64,142.61,0.28432314]
[1764343088187,24.53729668,142.64,142.61,0.28432314]
[1764343088397,17.52664049,142.64,142.61,0.28432314]
[1764343088702,18.23664049,142.64,142.61,0.28432314]
[1764343089470,24.53729668,142.64,142.62,8.80994492]
[1764343089876,24.53729668,142.64,142.63,3.12]
[1764343090591,7.01065619,142.64,142.63,3.12]
[1764343091393,17.52178547,142.68,142.64,8.80994492]
[1764343091572,24.53047624,142.68,142.64,8.80994492]
[1764343091775,25.24047624,142.68,142.64,14.95916608]
[1764343092164,24.53047624,142.68,142.64,15.63916608]
[1764343092364,25.24047624,142.68,142.66,9.09426806]
[1764343092668,24.53047624,142.68,142.66,12.21426806]
[1764343092865,7.00740043,142.71,142.68,25.40313206]
[1764343093093,7.00740043,142.71,142.7,9.09426806]
[1764343094078,7.20677381,142.72,142.7,9.09426806]
[1764343094788,0.2,142.72,142.71,18.58556506]
[1764343094964,0.2,142.72,142.71,19.26556506]
[1764343095369,0.2,142.74,142.73,9.09426806]
[1764343095674,0.2,142.74,142.73,21.70556506]
[1764343095867,0.2,142.74,142.73,22.38556506]
[1764343096276,0.2,142.74,142.73,12.21426806]
[1764343096478,7.20574471,142.74,142.73,12.21426806]
[1764343096990,7.91574471,142.74,142.73,12.21426806]
[1764343097496,0.2,142.74,142.73,12.21426806]
[1764343097699,7.20574471,142.74,142.73,12.21426806]
[1764343098081,7.89574471,142.74,142.73,12.21426806]
[1764343098276,7.20574471,142.74,142.73,12.21426806]
[1764343098485,7.89574471,142.74,142.73,12.21426806]
[1764343098701,17.38704171,142.74,142.73,11.92994492]
[1764343099081,17.38704171,142.74,142.73,3.12]
[1764343099776,17.38704171,142.74,142.7,8.80994492]
[1764343099777,34.90140348,142.74,142.7,8.80994492]
[1764343100099,0.69,142.73,142.71,3.12]
[1764343100478,0.69,142.73,142.72,8.80994492]
[1764343101511,7.69623554,142.73,142.72,8.80994492]
[1764343102511,7.00623554,142.73,142.72,25.33750441]
[1764343102814,7.69623554,142.73,142.72,25.33750441]
[1764343103109,7.00623554,142.73,142.72,25.33750441]
[1764343103613,7.69623554,142.73,142.72,25.33750441]
[1764343104289,7.00623554,142.73,142.72,8.74431727]
[1764343105594,7.00623554,142.73,142.72,9.72864041]
[1764343105919,7.00623554,142.73,142.72,9.02864041]
[1764343107291,7.00623554,142.73,142.72,19.21993741]
[1764343107489,7.20578353,142.74,142.72,19.21993741]
[1764343107717,7.20578353,142.74,142.73,19.00124192]
[1764343107911,0.2,142.74,142.73,19.28556506]
[1764343108521,0.2,142.74,142.73,22.40556506]
[1764343109499,0.2,142.74,142.73,38.71442906]
[1764343110300,0.2,142.74,142.73,29.22313206]
[1764343110501,0.2,142.74,142.73,38.71442906]
[1764343113216,7.89574471,142.74,142.72,9.491297]
[1764343113399,25.41010648,142.74,142.67,9.491297]
[1764343113599,25.41010648,142.74,142.68,12.591297]
[1764343113600,0.69,142.73,142.68,12.591297]
[1764343113816,10.181297,142.73,142.68,3.1]
[1764343114020,24.52354259,142.72,142.68,3.1]
[1764343114330,60.24717487,142.72,142.68,3.1]
[1764343114505,0.69,142.71,142.68,3.1]
[1764343115423,0.69,142.71,142.69,8.80994492]
[1764343116121,7.00770847,142.7,142.69,8.80994492]
[1764343116710,7.69770847,142.7,142.69,8.80994492]
[1764343117223,0.69,142.7,142.69,8.80994492]
[1764343118121,7.00741905,142.71,142.69,8.80994492]
[1764343118422,7.00741905,142.71,142.69,18.30124192]
[1764343118624,7.00741905,142.71,142.7,9.77562014]
[1764343119409,7.20593257,142.74,142.72,0.28432314]
[1764343119640,7.20593257,142.74,142.73,12.87562014]
[1764343119641,7.20574471,142.74,142.73,12.87562014]
[1764343120224,7.20574471,142.74,142.73,22.38556506]
[1764343120424,7.20574471,142.74,142.73,21.68556506]
[1764343121824,7.20574471,142.74,142.73,9.09426806]
[1764343122133,7.20574471,142.74,142.73,21.68556506]
[1764343123233,7.20574471,142.74,142.73,12.19426806]
[1764343123528,7.20574471,142.74,142.73,21.68556506]
[1764343125232,7.20574471,142.74,142.73,9.09426806]
[1764343125432,7.88574471,142.74,142.71,9.491297]
[1764343125637,7.20574471,142.74,142.73,3.1]
[1764343126219,7.88574471,142.74,142.73,3.1]
[1764343126521,25.40010648,142.74,142.73,3.1]
[1764343126717,25.40010648,142.74,142.73,21.68556506]
[1764343127037,24.72010648,142.74,142.73,21.68556506]
[1764343127211,25.40010648,142.74,142.73,21.68556506]
[1764343127413,24.72010648,142.74,142.73,21.68556506]
[1764343127637,25.40010648,142.74,142.73,21.68556506]
[1764343127932,24.72010648,142.74,142.73,21.68556506]
[1764343128635,25.40010648,142.74,142.73,12.591297]
[1764343131117,25.40010648,142.74,142.73,3.1]
[1764343131312,25.40010648,142.74,142.73,12.591297]
[1764343132927,0.68,142.73,142.71,9.491297]
[1764343133125,0.68,142.73,142.7,18.30124192]
[1764343133324,0.68,142.73,142.71,3.1]
[1764343133640,18.19674513,142.73,142.72,3.1]
[1764343133837,25.20298067,142.73,142.7,9.491297]
[1764343134030,24.52298067,142.73,142.72,3.1]
[1764343134617,25.20298067,142.73,142.72,3.1]
[1764343134819,0.2,142.74,142.72,3.8]
[1764343135019,0.2,142.74,142.73,8.80994492]
[1764343135341,7.88574471,142.74,142.73,11.90994492]
[1764343135546,7.88574471,142.74,142.73,3.1]
[1764343135751,25.40010648,142.74,142.71,8.80994492]
[1764343135924,0.68,142.73,142.72,3.1]
[1764343137635,7.68623554,142.73,142.72,3.1]
[1764343138745,7.68623554,142.73,142.68,9.09426806]
[1764343138746,69.72429915,142.73,142.68,9.09426806]
[1764343139044,10.171297,142.72,142.59,104.09999999]
[1764343139220,10.171297,142.72,142.58,23.32236022]
[1764343139221,9.491297,142.7,142.65,8.80994492]
[1764343139423,9.491297,142.68,142.65,3.1]
[1764343139627,7.00918202,142.67,142.65,3.1]
[1764343139825,7.00853286,142.69,142.66,18.30124192]
[1764343140135,24.52903184,142.69,142.68,8.80994492]
[1764343140338,24.52903184,142.69,142.68,11.90994492]
[1764343140927,24.52903184,142.69,142.65,0.7]
[1764343141148,10.171297,142.68,142.65,3.1]
[1764343141325,9.491297,142.66,142.61,9.491297]
[1764343141645,24.53557657,142.65,142.62,3.1]
[1764343141836,25.21557657,142.65,142.62,11.90994492]
[1764343142037,24.53557657,142.65,142.63,18.30124192]
[1764343142626,24.53557657,142.65,142.64,18.30124192]
[1764343143441,24.53557657,142.65,142.64,8.80994492]
[1764343143640,17.52541184,142.65,142.64,18.30124192]
[1764343145755,42.05849411,142.66,142.64,18.30124192]
[1764343145756,24.53041771,142.68,142.66,0.28432314]
[1764343145931,24.53041771,142.68,142.67,12.89562014]
[1764343146131,7.00869077,142.68,142.67,22.40556506]
[1764343146455,7.00774013,142.7,142.69,25.11880892]
[1764343147159,7.00774013,142.7,142.69,38.01442906]
[1764343147754,17.51914579,142.71,142.7,8.80994492]
[1764343148052,17.51914579,142.71,142.7,18.30124192]
[1764343148437,17.51914579,142.71,142.7,18.58556506]
[1764343150039,7.00672645,142.72,142.71,0.28432314]
[1764343150338,7.00672645,142.72,142.71,9.77562014]
[1764343150642,7.20613544,142.74,142.73,0.28432314]
[1764343150959,7.20613544,142.74,142.73,12.89562014]
[1764343152142,0.2,142.74,142.73,22.40556506]
[1764343152958,7.20574471,142.74,142.73,21.70556506]
[1764343153167,0.2,142.74,142.73,21.70556506]
[1764343153564,7.20574471,142.74,142.73,12.21426806]
[1764343153744,7.20574471,142.74,142.73,21.70556506]
[1764343154655,7.20574471,142.74,142.73,22.40556506]
[1764343154966,7.20574471,142.74,142.73,21.70556506]
[1764343155262,0.2,142.74,142.73,22.40556506]
[1764343155763,0.2,142.76,142.75,9.09426806]
[1764343155933,0.2,142.77,142.76,9.09426806]
[1764343156137,0.2,142.77,142.76,22.20556506]
[1764343156545,0.2,142.77,142.76,18.83822559]
[1764343156946,7.2042726,142.77,142.76,18.33822559]
[1764343158145,0.2,142.77,142.76,18.33822559]
[1764343158464,7.2042726,142.77,142.76,18.33822559]
[1764343159470,7.2042726,142.77,142.76,14.93390245]
[1764343159471,7.9042726,142.77,142.76,14.93390245]
[1764343159681,7.9042726,142.77,142.76,18.05390245]
[1764343159966,7.9042726,142.77,142.76,11.92994492]
[1764343160850,7.9042726,142.77,142.76,18.05390245]
[1764343162157,7.9042726,142.77,142.76,11.92994492]
[1764343162357,7.9042726,142.77,142.76,3.1]